[Event "NY Presidents Day Schiller-C 2024"]
[Site "New York"]
[Date "2024.02.19"]
[Round "9.1"]
[White "Czebe, Attila"]
[Black "Yoo, Eugene"]
[Result "1/2-1/2"]
[ECO "B23"]
[WhiteElo "2346"]
[BlackElo "2168"]
[Annotator "RC"]
[PlyCount "49"]
[EventDate "2024.02.14"]
[EventType "schev"]
[EventCountry "USA"]
[SourceTitle "playchess.com"]
[Source "ChessBase"]
[SourceQuality "1"]
[TimeControl "5400+30"]

1. e4 {[%emt 0:00:03]} c5 {[%emt 0:01:23]} 2. Nc3 {[%emt 0:00:07]} Nc6 {[%emt 0:00:11]} 3. Bb5 {[%emt 0:00:08]} Nd4 {[%emt 0:00:10]} 4. Nf3 {[%emt 0:01:03]} a6 {[%emt 0:00:13]} 5. Bd3 {[%emt 0:00:32]} g6 {[%emt 0:00:08]} 6. O-O {[%emt 0:01:20]} Bg7 {[%emt 0:00:02]} 7. Nd5 {[%emt 0:01:43]} e6 {[%emt 0:02:27]} 8. Ne3 {[%emt 0:00:17]} d5 {[%emt 0:03:57]} 9. exd5 {[%emt 0:00:56]} exd5 {[%emt 0:00:13]} 10. Re1 {[%emt 0:02:46]} Ne7 {[%emt 0:00:46]} 11. Nxd4 {[%emt 0:00:09]} cxd4 {[%emt 0:01:43]} 12. Nf1 {[%emt 0:01:07]} O-O {[%emt 0:01:12]} 13. Ng3 {[%emt 0:00:26]} h5 {[%emt 0:03:02]} 14. Bf1 {[%emt 0:00:13]} h4 {[%emt 0:00:04]} 15. Ne2 {[%emt 0:00:34]} d3 {[%emt 0:03:58]} 16. cxd3 {[%emt 0:00:01]} d4 {[%emt 0:00:01]} 17. b3 {[%emt 0:00:09]} Re8 {[%emt 0:07:30]} 18. Nf4 {[%emt 0:04:00]} Qa5 {[%emt 0:08:21]} 19. Bb2 {[%emt 0:03:31]} Bd7 {[%emt 0:01:27]} 20. g3 {[%emt 0:01:12]} Bh6 {[%emt 1:03:42]} 21. Bxd4 {[%emt 1:20:43]} hxg3 22. hxg3 Bxf4 23. gxf4 Qd5 {[%emt 0:01:30]} 24. Bc3 {[%emt 0:01:30]} Qa5 {[%emt 0:00:30]} 25. Bb2 1/2-1/2

[Event "NY Presidents Day Schiller-C 2024"]
[Site "New York"]
[Date "2024.02.20"]
[Round "9.2"]
[White "Liu, Kelsey"]
[Black "Quesada Vera, Liordis"]
[Result "0-1"]
[ECO "C40"]
[WhiteElo "2004"]
[BlackElo "2337"]
[Annotator "TA"]
[PlyCount "68"]
[EventDate "2024.02.14"]
[EventType "schev"]
[EventCountry "USA"]
[SourceTitle "playchess.com"]
[Source "ChessBase"]
[SourceQuality "1"]
[TimeControl "5400+30"]

{[%evp 9,68,52,74,62,51,37,30,22,45,-126,-126,-184,-189,-200,-195,-195,-179,-200,-198,-202,-197,-337,-343,-394,-355,-403,-372,-392,-366,-379,-316,-308,-284,-362,-344,-351,-335,-381,-382,-405,-393,-1097,-1063,-1554,-1544,-29975,-29973,-29977,-29978,-29978,-29979,-29979,-29978,-29944,-29944,-29984,-5318,-5185,-2121,-1651,-1491]} 1. e4 {[%emt 0:00:01]} e5 {[%emt 0:19:04]} 2. Nf3 {[%emt 0:00:20]} Qe7 {[%emt 0:00:18]} 3. Bc4 {[%emt 0:01:28]} d6 {[%emt 0:00:09]} 4. Nc3 {[%emt 0:02:11]} c6 {[%emt 0:00:08]} 5. a4 {[%emt 0:00:32]} h6 {[%emt 0:00:09]} 6. h3 {[%emt 0:01:33]} Nf6 {[%emt 0:00:14]} 7. d3 {[%emt 0:01:22]} Be6 {[%emt 0:03:34]} 8. Be3 {[%emt 0:09:51] Weiß hat minimalen Vorteil.} Nbd7 {[%emt 1:10:54]} 9. Qd2 $2 (9. Bxe6 $14 {behält die Oberhand.} Qxe6 10. d4) 9... d5 $17 10. exd5 (10. Ba2 $17) 10... cxd5 $19 11. Nb5 {[#]} Qd8 {Verhindert Nc7+. ...a6 wäre nun fies.} 12. Bb3 a6 13. Na3 d4 14. Bxe6 fxe6 15. Bg5 (15. Nxd4 $142 exd4 16. Bxd4) 15... hxg5 16. Qxg5 Qa5+ 17. Ke2 Bxa3 ({Viel schwächer ist} 17... Qxa4 18. Qg6+ Kd8 19. Rhc1 $19) 18. Qg6+ Kd8 19. Rxa3 Qc5 20. Rc1 Rh6 21. Qxg7 Rh7 22. Qg5 Ke7 {Weiss muss nun ...Rg8 beachten.} 23. Kf1 Qd5 {Und ...Rg8 würde nun gewinnen.} 24. Qd2 Rg8 {[%emt 0:00:00]} 25. c3 $2 {[%emt 0:10:54] [#]} (25. Ng5) 25... Rxh3 $3 {[%emt 0:00:00][%cal Og8g2][%mdl 512] Droht ...Rxg2! und aus.} 26. gxh3 {[%emt 0:48:27]} (26. c4 Qc6) 26... Qxf3 {[%emt 0:00:00]} 27. cxd4 {[%emt 0:04:09]} Qxh3+ {[%emt 0:00:00]} 28. Ke2 {[%emt 0:00:06]} Qh5+ {[%emt 0:00:00]} 29. Kf1 {[%emt 0:00:10]} Nd5 {[%emt 0:00:00]} 30. dxe5 {[%emt 0:00:56]} Qh3+ {[%emt 0:00:00]} 31. Ke2 {[%emt 0:00:49]} Qg4+ {[%emt 0:00:00]} 32. Ke1 {[%emt 0:01:08]} Qf3 {[%emt 0:00:00]} (32... Nxe5 $142 33. d4 Nf3+ (33... Rh8 $2 34. Qe2 $19) 34. Rxf3 Qxf3 35. Qe2 Rg1+ 36. Kd2 Qf4+ (36... Qxe2+ $2 37. Kxe2 Rxc1 38. b4 $19) 37. Qe3 Nxe3 38. Rxg1 Qxf2+ 39. Kd3 Qxg1 40. Kd2 Nd5 41. Ke2 Qe3+ (41... Qxd4 {wird mattgesetzt.} 42. Kf3 Qe3+ 43. Kg4 Nf6+ 44. Kh4 Ne4 45. Kg4 Qg3+ 46. Kh5 Qg5#) 42. Kd1 Nf4 (42... Qxd4+ {führt zum Matt.} 43. Ke2 Qe3+ 44. Kd1 Nf4 45. b4 Qe2+ 46. Kc1 Nd3+ 47. Kb1 Qb2#) 43. b4 Qe2+ (43... Qxd4+ 44. Kc2 Qd3+ 45. Kb2 Qc4 46. Ka3 Nd3 47. a5 Qxb4+ 48. Ka2 Qb2#) 44. Kc1 Nd3+ 45. Kb1 Qb2#) 33. Kf1 {[%emt 0:02:07]} Rh8 {[%emt 0:00:00][%cal Rh8h1]} 34. Qg5+ {[%emt 0:00:21]} Kf7 {[%emt 0:00:00] Weiß wurde aus der Eröffnung heraus überfahren.   Gewichteter Fehlerwert: Weiß=0.73/Schwarz=0.23 (präzise) .  Fehler:       	Weiß=4     	---        Ungenau:       	Weiß=1     	---        OK:         	Weiß=8     	Schwarz=12    Bester:       	---       	Schwarz=2} 0-1

[Event "NY Presidents Day Schiller-C 2024"]
[Site "New York"]
[Date "2024.02.20"]
[Round "9.3"]
[White "Gaw, Chloe"]
[Black "Perez Avendano, Paul Omar"]
[Result "1-0"]
[ECO "E43"]
[WhiteElo "1928"]
[BlackElo "2213"]
[Annotator "RC"]
[PlyCount "65"]
[EventDate "2024.02.14"]
[EventType "schev"]
[EventCountry "USA"]
[SourceTitle "playchess.com"]
[Source "ChessBase"]
[SourceQuality "1"]
[TimeControl "5400+30"]

1. d4 {[%emt 0:00:01]} Nf6 {[%emt 0:02:32]} 2. c4 {[%emt 0:00:03]} e6 {[%emt 0:00:09]} 3. Nc3 {[%emt 0:00:06]} Bb4 {[%emt 0:00:23]} 4. e3 {[%emt 0:00:03]} b6 {[%emt 0:00:37]} 5. f3 {[%emt 0:01:44]} O-O {[%emt 0:02:43]} 6. Bd3 {[%emt 0:01:39]} d5 {[%emt 0:03:11]} 7. a3 {[%emt 0:01:13]} Be7 {[%emt 0:00:43]} 8. Nge2 {[%emt 0:05:21]} c5 {[%emt 0:02:36]} 9. cxd5 {[%emt 0:01:14]} exd5 {[%emt 0:00:23]} 10. O-O {[%emt 0:01:18]} Nc6 {[%emt 0:00:35]} 11. Bd2 {[%emt 0:09:23]} a6 {[%emt 0:01:10]} 12. Be1 {[%emt 0:05:16]} Re8 {[%emt 0:04:59]} 13. Bc2 {[%emt 0:04:10]} Be6 {[%emt 0:08:23]} 14. Kh1 {[%emt 0:03:36]} cxd4 {[%emt 0:06:04]} 15. Nxd4 {[%emt 0:03:02]} Nxd4 {[%emt 0:03:12]} 16. Qxd4 {[%emt 0:03:03]} Bc5 {[%emt 0:02:47]} 17. Qd3 {[%emt 0:02:16]} Bc8 {[%emt 0:11:54]} 18. Bh4 {[%emt 0:05:08]} Bb7 {[%emt 0:16:36]} 19. Bxf6 {[%emt 0:10:11]} Qxf6 {[%emt 0:00:12]} 20. Qxh7+ {[%emt 0:00:20]} Kf8 {[%emt 0:00:07]} 21. e4 {[%emt 0:01:46]} d4 {[%emt 0:10:27]} 22. Ne2 {[%emt 0:06:05]} g6 {[%emt 0:01:09]} 23. Rad1 {[%emt 0:06:59]} Ke7 {[%emt 0:01:51]} 24. e5 {[%emt 0:01:44]} Qxe5 {[%emt 0:04:05]} 25. Bxg6 {[%emt 0:10:49]} Rh8 {[%emt 0:06:17]} 26. Qxf7+ {[%emt 0:00:35]} Kd8 {[%emt 0:00:53]} 27. Nf4 {[%emt 0:00:54]} Qe7 {[%emt 0:08:33]} 28. Qf5 {[%emt 0:04:50]} Kc7 {[%emt 0:00:44]} 29. Rfe1 {[%emt 0:01:54]} Qh4 {[%emt 0:00:29]} 30. Qe5+ {[%emt 0:00:26]} Bd6 {[%emt 0:00:29]} 31. Rc1+ {[%emt 0:00:34]} Bc6 {[%emt 0:00:27]} 32. Nd5+ {[%emt 0:00:34]} Kb7 {[%emt 0:01:17]} 33. Qxd6 {[%emt 0:00:26]} 1-0

[Event "NY Presidents Day Schiller-C 2024"]
[Site "New York"]
[Date "2024.02.19"]
[Round "9.4"]
[White "Mou, Iris"]
[Black "Andrianov, Nikolai"]
[Result "1/2-1/2"]
[ECO "B40"]
[WhiteElo "2128"]
[BlackElo "2266"]
[Annotator "TA"]
[PlyCount "30"]
[EventDate "2024.02.14"]
[EventType "schev"]
[EventCountry "USA"]
[SourceTitle "playchess.com"]
[Source "ChessBase"]
[SourceQuality "1"]
[TimeControl "5400+30"]

{[%evp 9,30,8,19,20,19,14,25,18,52,37,20,37,45,32,39,40,62,25,22,19,17,13,18]} 1. e4 {[%emt 0:00:02]} c5 {[%emt 0:00:04]} 2. Nf3 {[%emt 0:00:09]} e6 {[%emt 0:00:07]} 3. g3 {[%emt 0:02:24]} Nc6 {[%emt 0:03:18]} 4. Bg2 {[%emt 0:00:12]} Nf6 {[%emt 0:01:10]} 5. Qe2 {[%emt 0:00:53]} d5 {[%emt 0:00:58]} 6. exd5 {[%emt 0:01:27]} Nxd5 {[%emt 0:00:52]} 7. O-O {[%emt 0:00:18]} Be7 {[%emt 0:00:07]} 8. Rd1 {[%emt 0:00:32] White has an edge.} O-O {[%emt 0:08:02][%cal Oe6e5]} 9. d4 {[%emt 0:01:52]} cxd4 {[%emt 0:00:30]} 10. Nxd4 {[%emt 0:00:08]} Nxd4 {[%emt 0:00:28]} 11. Rxd4 {[%emt 0:00:08]} Bf6 {[%emt 0:00:15]} 12. Rd1 {[%emt 0:02:49] [#] aiming for c4.} Qc7 {[%emt 0:02:17]} 13. Na3 {[%emt 0:17:08]} a6 {[%emt 0:04:25] Against c4} 14. c4 {[%emt 0:03:22]} Ne7 {[%emt 0:00:27]} 15. Bf4 {[%emt 0:11:31]} e5 {[%emt 0:00:38] Weighted Error Value: White=0.05 (flawless) /Black=0.09 (flawless) .  Inaccurate:     	White=1     	Black=1      OK:         	White=4     	Black=1      Best:        	White=1     	Black=1} 1/2-1/2

[Event "NY Presidents Day Schiller-C 2024"]
[Site "New York"]
[Date "2024.02.20"]
[Round "9.5"]
[White "Shangin, Lev"]
[Black "Plat, Vojtech"]
[Result "1/2-1/2"]
[ECO "B07"]
[WhiteElo "1866"]
[BlackElo "2516"]
[Annotator "TA"]
[PlyCount "106"]
[EventDate "2024.02.14"]
[EventType "schev"]
[EventCountry "USA"]
[SourceTitle "playchess.com"]
[Source "ChessBase"]
[SourceQuality "1"]
[TimeControl "5400+30"]

{[%evp 15,106,29,47,47,52,43,58,41,35,38,46,41,78,78,83,91,100,98,95,86,96,97,83,38,34,35,148,152,157,156,230,162,243,250,252,220,258,254,305,272,339,324,397,249,234,258,239,261,248,256,252,244,483,385,428,324,312,295,303,265,268,0,267,0,282,268,334,328,296,245,286,277,281,281,275,277,472,287,266,159,141,101,197,133,101,118,120,125,129,96,154,0,83]} 1. d4 {[%emt 0:00:04]} d6 {[%emt 0:06:30]} 2. e4 {[%emt 0:00:31]} Nf6 {[%emt 0:00:04]} 3. Nc3 {[%emt 0:00:13]} e5 {[%emt 0:00:04]} 4. dxe5 {[%emt 0:00:50]} dxe5 {[%emt 0:00:02]} 5. Qxd8+ {[%emt 0:00:11]} Kxd8 {[%emt 0:00:03]} 6. Bc4 {[%emt 0:00:16]} Be6 {[%emt 0:00:04]} 7. Bxe6 {[%emt 0:00:13]} fxe6 {[%emt 0:00:01]} 8. f3 {[%emt 0:01:06]} Bc5 {[%emt 0:00:19]} 9. Nd1 {[%emt 0:01:27]} Nc6 {[%emt 0:00:38]} 10. c3 {[%emt 0:00:59] Prevents Nb4} Ke7 {[%emt 0:00:07]} 11. Be3 {[%emt 0:00:53] White is slightly better.} Bb6 {[%emt 0:00:04]} 12. Nh3 {[%emt 0:03:38][%cal Bg1h3,Bh3f2,Bf2d3][%mdl 32]} Rhd8 {[%emt 0:00:04][%cal Od8d1]} 13. Ke2 {[%emt 0:00:53]} h6 {[%emt 0:00:35]} 14. Nhf2 {[%emt 0:05:11]} Ne8 {[%emt 0:00:51]} 15. Nd3 {[%emt 0:05:14]} Nd6 {[%emt 0:02:29]} 16. b3 {[%emt 0:03:27]} Rd7 {[%emt 0:00:54]} 17. Nc5 {[%emt 0:04:15]} Bxc5 {[%emt 0:00:05]} 18. Bxc5 {[%emt 0:00:05]} b6 {[%emt 0:00:09]} 19. Ba3 {[%emt 0:00:31][%cal Bc5a3,Ba3b2,Bb2d4][%mdl 32]} a5 {[%emt 0:00:18]} 20. Ne3 {[%emt 0:01:03]} Na7 {[%emt 0:00:58]} (20... Rdd8 $14) 21. Nc4 $1 $16 {[%emt 0:00:59]} Rdd8 {[%emt 0:01:26]} 22. Nxe5 {[%emt 0:01:48] White is more active.} a4 {[%emt 0:00:42]} (22... Kf6 $16) 23. Bb2 {[%emt 0:03:27]} (23. bxa4 Kf6 24. Ng4+ Kf7 25. Bxd6 Rxd6) 23... Ndb5 {[%emt 0:03:01]} (23... Nf7 {might work better.} 24. c4 Nxe5 25. Bxe5 Rac8) 24. bxa4 $18 {[%emt 0:02:02]} Nd6 {[%emt 0:00:02] [#]} 25. a5 $1 {[%emt 0:03:21]} bxa5 {[%emt 0:00:16]} (25... Nf7 26. Ba3+) 26. Rab1 {[%emt 0:02:41]} Rdb8 {[%emt 0:02:44]} 27. c4 {[%emt 0:02:29]} Rb4 {[%emt 0:02:28][%cal Oa8b8]} 28. Bd4 {[%emt 0:00:53]} Kf8 {[%emt 0:04:07]} 29. Bxa7 {[%emt 0:00:48]} Rxa7 {[%emt 0:00:01]} 30. Nc6 {[%emt 0:00:38][%csl LRa7,LRb4]} Rxb1 {[%emt 0:00:07]} 31. Rxb1 {[%emt 0:00:04][%mdl 4096] Endgame. KRN-KRN} Ra6 {[%emt 0:00:04]} 32. Ne5 {[%emt 0:01:00]} Ke7 {[%emt 0:00:15]} 33. c5 {[%emt 0:00:31]} Ne8 {[%emt 0:00:05]} (33... Nf7) 34. Ke3 {[%emt 0:00:47]} a4 {[%emt 0:00:10]} 35. a3 {[%emt 0:00:41]} Ra8 {[%emt 0:00:50]} 36. f4 {[%emt 0:01:28]} Nf6 {[%emt 0:00:03]} 37. Nc6+ {[%emt 0:01:00]} Kd7 {[%emt 0:00:15]} 38. Ne5+ {[%emt 0:00:05]} Ke7 {[%emt 0:00:04]} 39. Nc6+ {[%emt 0:02:05]} (39. Rb7 Kd8 40. Kd4 Kc8) 39... Kd7 $1 {[%emt 0:00:03]} 40. Nd4 {[%emt 0:00:46]} g5 {[%emt 0:01:17]} 41. c6+ {[%emt 0:01:33]} Ke7 {[%emt 0:00:14]} 42. h3 {[%emt 0:02:18][%cal Bh2h3,Bh3h4][%mdl 32]} gxf4+ {[%emt 0:00:16]} 43. Kxf4 {[%emt 0:00:07]} Rg8 {[%emt 0:01:08]} 44. g4 {[%emt 0:01:19][%cal Bg2g4,Bg4g5][%mdl 32]} h5 {[%emt 0:04:37]} 45. g5 {[%emt 0:01:58]} Nh7 {[%emt 0:00:03]} (45... e5+ 46. Kxe5 (46. Kf5 Ne8 $18) 46... Rxg5+ 47. Nf5+ Kf7) 46. h4 {[%emt 0:00:21]} Nf8 {[%emt 0:00:09]} 47. Kg3 {[%emt 0:10:03]} (47. e5 $1 $18) 47... Ng6 $16 {[%emt 0:00:20]} 48. Ne2 {[%emt 0:00:59]} e5 {[%emt 0:04:29] [#] Repels Nf4} (48... Kd6 $16 {was necessary.}) 49. Nc3 {[%emt 0:03:36]} (49. Rd1 $1 $18 {Threatens to win with Nc3.} Rb8 50. Rd7+ Ke6 51. Rxc7 Rb3+ 52. Kf2 Rxa3 53. Rg7 Nxh4 54. Rg8) 49... Kd6 {[%emt 0:01:01]} 50. Nd5 {[%emt 0:02:39] Dodges Nf4. Rf1 would now be deadly.} (50. Nxa4 Ra8 51. Nc3 Rxa3 $15) 50... Kxc6 {[%emt 0:00:12]} 51. Rc1+ {[%emt 0:00:34]} Kd6 {[%emt 0:00:03]} 52. Rd1 {[%emt 0:02:21] Strongly threatening Nf6+.} ({Reject} 52. Nxc7 $6 Rb8 $11) 52... Kc6 {[%emt 0:00:14] [#]} (52... Kc5 $142) 53. Rc1+ {[%emt 0:00:04]} ({White should try} 53. Nf6 $1 {[%cal Rf6g8]} Rh8 54. Rd5) 53... Kd6 {[%emt 0:00:04] Weighted Error Value: White=0.40/Black=0.30.  Mistake:       	White=3     	Black=7      Inaccurate:     	White=3     	Black=1      OK:         	White=16    	Black=12     Best:        	White=1     	Black=9      Strong:       	White=1     	Black=1} 1/2-1/2

[Event "NY Presidents Day Schiller-C 2024"]
[Site "New York"]
[Date "2024.02.20"]
[Round "9.6"]
[White "Martin Del Campo Cardenas, Roberto Abel"]
[Black "Pagan, Jonathan"]
[Result "1-0"]
[ECO "B19"]
[WhiteElo "2205"]
[BlackElo "2018"]
[Annotator "RC"]
[PlyCount "81"]
[EventDate "2024.02.14"]
[EventType "schev"]
[EventCountry "USA"]
[SourceTitle "playchess.com"]
[Source "ChessBase"]
[SourceQuality "1"]
[TimeControl "5400+30"]

1. e4 {[%emt 0:00:48]} c6 {[%emt 0:00:03]} 2. d4 {[%emt 0:01:17]} d5 {[%emt 0:00:04]} 3. Nd2 {[%emt 0:00:05]} dxe4 {[%emt 0:00:04]} 4. Nxe4 {[%emt 0:00:03]} Bf5 {[%emt 0:00:05]} 5. Ng3 {[%emt 0:01:02]} Bg6 {[%emt 0:00:06]} 6. h4 {[%emt 0:00:36]} h6 {[%emt 0:00:03]} 7. Nf3 {[%emt 0:00:55]} e6 {[%emt 0:00:05]} 8. h5 {[%emt 0:00:47]} Bh7 {[%emt 0:00:04]} 9. Bd3 {[%emt 0:00:03]} Bxd3 {[%emt 0:00:05]} 10. Qxd3 {[%emt 0:00:05]} Nf6 {[%emt 0:00:06]} 11. Bd2 {[%emt 0:05:47]} Be7 {[%emt 0:06:32]} 12. O-O-O {[%emt 0:00:38]} O-O {[%emt 0:00:04]} 13. Kb1 {[%emt 0:03:28]} c5 {[%emt 0:07:37]} 14. c4 {[%emt 0:07:14]} cxd4 {[%emt 0:01:32]} 15. Qxd4 {[%emt 0:00:24]} Qxd4 {[%emt 0:01:07]} 16. Nxd4 {[%emt 0:00:05]} Rc8 {[%emt 0:00:55]} 17. b3 {[%emt 0:04:58]} Nc6 {[%emt 0:00:16]} 18. Bc3 {[%emt 0:01:40]} Nxd4 {[%emt 0:00:31]} 19. Bxd4 {[%emt 0:00:08]} Rd8 {[%emt 0:01:24]} 20. Rhe1 {[%emt 0:01:31]} Bb4 {[%emt 0:02:05]} 21. Rf1 {[%emt 0:08:57]} Nd7 {[%emt 0:23:55]} 22. f4 {[%emt 0:03:39]} f5 {[%emt 0:00:31]} 23. Rf3 {[%emt 0:09:25]} Be7 {[%emt 0:05:35]} 24. Rfd3 {[%emt 0:13:31]} Nf6 {[%emt 0:07:14]} 25. Kc2 {[%emt 0:02:53]} Kf7 {[%emt 0:00:28]} 26. Bxf6 {[%emt 0:01:22]} Bxf6 {[%emt 0:00:05]} 27. Rd7+ {[%emt 0:00:09]} Ke8 {[%emt 0:02:00]} 28. Rxb7 {[%emt 0:00:32]} Rxd1 {[%emt 0:00:10]} 29. Kxd1 {[%emt 0:00:01]} Rd8+ {[%emt 0:00:04]} 30. Kc2 {[%emt 0:02:07]} Rd7 {[%emt 0:00:09]} 31. Rxd7 {[%emt 0:01:33]} Kxd7 {[%emt 0:00:04]} 32. b4 {[%emt 0:00:12]} Kc6 {[%emt 0:01:52]} 33. Ne2 {[%emt 0:03:31]} Kb6 {[%emt 0:01:09]} 34. Kd3 {[%emt 0:02:15]} Kc6 {[%emt 0:01:10]} 35. Nd4+ {[%emt 0:01:37]} Kd7 {[%emt 0:00:03]} 36. c5 {[%emt 0:00:36]} a6 {[%emt 0:00:21]} 37. a4 {[%emt 0:00:55]} Be7 {[%emt 0:00:16]} 38. Kc4 {[%emt 0:00:06]} Bf6 {[%emt 0:00:15]} 39. b5 {[%emt 0:00:11]} axb5+ {[%emt 0:00:04]} 40. axb5 {[%emt 0:00:02]} Be7 {[%emt 0:00:13]} 41. b6 {[%emt 0:00:26]} 1-0

[Event "NY Presidents Day Schiller-C 2024"]
[Site "New York"]
[Date "2024.02.20"]
[Round "9.7"]
[White "Podavonov, Alisher"]
[Black "Ho, Carter"]
[Result "0-1"]
[ECO "E11"]
[WhiteElo "2175"]
[BlackElo "2180"]
[Annotator "RC"]
[PlyCount "122"]
[EventDate "2024.02.14"]
[EventType "schev"]
[EventCountry "USA"]
[SourceTitle "playchess.com"]
[Source "ChessBase"]
[SourceQuality "1"]
[TimeControl "5400+30"]

1. d4 {[%emt 0:00:03]} Nf6 {[%emt 0:01:57]} 2. c4 {[%emt 0:00:04]} e6 {[%emt 0:00:07]} 3. g3 {[%emt 0:00:14]} d5 {[%emt 0:00:25]} 4. Nf3 {[%emt 0:00:05]} Bb4+ {[%emt 0:03:48]} 5. Bd2 {[%emt 0:00:11]} Be7 {[%emt 0:00:05]} 6. Bg2 {[%emt 0:01:04]} O-O {[%emt 0:00:12]} 7. O-O {[%emt 0:00:30]} Nbd7 {[%emt 0:00:20]} 8. Qc2 {[%emt 0:01:44]} c6 {[%emt 0:00:14]} 9. Bf4 {[%emt 0:04:47]} b6 {[%emt 0:00:49]} 10. Nbd2 {[%emt 0:04:29]} Nh5 {[%emt 0:07:13]} 11. Ne5 {[%emt 0:01:57]} Nxe5 {[%emt 0:18:55]} 12. Bxe5 {[%emt 0:01:05]} f6 {[%emt 0:00:55]} 13. Bf4 {[%emt 0:00:08]} Nxf4 {[%emt 0:06:31]} 14. gxf4 {[%emt 0:00:02]} Ba6 {[%emt 0:00:42]} 15. Rfd1 {[%emt 0:10:02]} Rc8 {[%emt 0:02:25]} 16. e3 {[%emt 0:02:22]} f5 {[%emt 0:05:37]} 17. Nf3 {[%emt 0:14:36]} Rf6 {[%emt 0:04:56]} 18. Ne5 {[%emt 0:07:22]} Bd6 {[%emt 0:01:17]} 19. cxd5 {[%emt 0:05:57]} cxd5 {[%emt 0:09:03]} 20. Qa4 {[%emt 0:00:11]} Be2 {[%emt 0:00:30]} 21. Re1 {[%emt 0:11:56]} Bh5 {[%emt 0:00:33]} 22. Rac1 {[%emt 0:04:37]} Bxe5 {[%emt 0:01:26]} 23. dxe5 {[%emt 0:00:45]} Rg6 {[%emt 0:00:14]} 24. Kh1 {[%emt 0:02:38]} a5 {[%emt 0:05:40]} 25. f3 {[%emt 0:09:54]} Rh6 {[%emt 0:02:22]} 26. Rxc8 {[%emt 0:03:20]} Qxc8 {[%emt 0:00:05]} 27. Rf1 {[%emt 0:01:19]} Be8 {[%emt 0:02:00]} 28. Qd4 {[%emt 0:01:45]} Qc2 {[%emt 0:03:16]} 29. Rd1 {[%emt 0:05:39]} Qf2 {[%emt 0:05:40]} 30. Qd2 {[%emt 0:00:27]} Qh4 {[%emt 0:00:09]} 31. h3 {[%emt 0:00:21]} Bh5 {[%emt 0:04:00]} 32. Rf1 {[%emt 0:00:36]} Be8 {[%emt 0:03:05]} 33. Qf2 {[%emt 0:02:42]} d4 {[%emt 0:00:18]} 34. Qxh4 {[%emt 0:00:10]} Rxh4 {[%emt 0:00:03]} 35. exd4 {[%emt 0:01:18]} Rxf4 {[%emt 0:00:06]} 36. Rd1 {[%emt 0:00:06]} Bc6 {[%emt 0:00:53]} 37. Rd3 {[%emt 0:00:05]} Kf7 {[%emt 0:01:24]} 38. Kh2 {[%emt 0:00:14]} Ke7 {[%emt 0:00:26]} 39. Kg3 {[%emt 0:00:12]} g5 {[%emt 0:00:03]} 40. Kf2 {[%emt 0:01:54]} h5 {[%emt 0:00:56]} 41. Ke3 {[%emt 0:00:11]} Bd5 {[%emt 0:01:10]} 42. a3 {[%emt 0:00:28]} a4 {[%emt 0:01:20]} 43. Rd1 {[%emt 0:00:43]} Rh4 {[%emt 0:02:13]} 44. Kf2 {[%emt 0:00:42]} Rf4 {[%emt 0:03:40]} 45. Rd2 {[%emt 0:00:33]} Bxf3 {[%emt 0:02:10]} 46. Bxf3 {[%emt 0:00:07]} g4 {[%emt 0:00:02]} 47. Rd3 {[%emt 0:00:16]} Kd7 {[%emt 0:00:41]} 48. h4 {[%emt 0:03:52]} Rxf3+ {[%emt 0:00:48]} 49. Rxf3 {[%emt 0:00:02]} gxf3 {[%emt 0:00:06]} 50. Kxf3 {[%emt 0:00:07]} Kc6 {[%emt 0:00:08]} 51. Kf4 {[%emt 0:00:11]} Kd5 {[%emt 0:00:08]} 52. Kg5 {[%emt 0:00:09]} Ke4 {[%emt 0:02:15]} 53. Kf6 {[%emt 0:01:51]} f4 {[%emt 0:00:08]} 54. Kxe6 {[%emt 0:00:02]} f3 {[%emt 0:00:05]} 55. d5 {[%emt 0:00:07]} f2 {[%emt 0:00:02]} 56. d6 {[%emt 0:00:11]} f1=Q {[%emt 0:00:06]} 57. d7 {[%emt 0:00:04]} Qf5+ {[%emt 0:00:24]} 58. Kd6 {[%emt 0:00:18]} Qxe5+ {[%emt 0:00:07]} 59. Kc6 {[%emt 0:00:02]} Qc5+ {[%emt 0:00:13]} 60. Kb7 {[%emt 0:00:01]} Qd6 {[%emt 0:00:09]} 61. Kc8 {[%emt 0:00:11]} Qc6+ {[%emt 0:00:06]} 0-1